Cogmind - Beta 14 @@@ ROGUE MODE // 2024.12.16 @ 20:36:16 Player: xack Result: Destroyed by HM-863(R) with Subdweller Beam Cannon Performance ------------- Evolutions (0) 0 Regions Visited (2) 400 Robots Destroyed (26) 130 Value Destroyed (767) 767 Prototype IDs (4) 80 Alien Tech Used (0) 0 Bonus (0) 0 TOTAL SCORE: 1377 Bonus ------- None Cogmind --------- Core Integrity 0/250 Matter 300/300 Energy 250/250 System Corruption 0% Temperature Cool (9) Movement Rolling (95) Location -10/Subcaves Parts ------- > --- POWER (1) -------- Ion Engine > --- PROPULSION (2) --- Wheel Subdweller Monowheel > --- UTILITY (2) ------ Medium Storage Unit Makeshift Light Armor Plating > --- WEAPON (2) ------- Subdweller Laser Subdweller Machine Gun > --- INVENTORY (10) --- Ion Engine Aluminum Leg Aluminum Leg Improved Heat Sink Large Storage Unit Subdweller Optics Riot Gun Subdweller Laser Subdweller Laser Subdweller Shrapnel Launcher Peak State ------------ > --- POWER ------------ Ion Engine > --- PROPULSION ------- Wheel Subdweller Monowheel > --- UTILITY ---------- Medium Storage Unit Makeshift Light Armor Plating > --- WEAPON ----------- Subdweller Laser Battle Rifle > --- INVENTORY -------- Ion Engine Aluminum Leg Aluminum Leg Subdweller Monowheel Improved Heat Sink Large Storage Unit Subdweller Optics Riot Gun Subdweller Laser [Rating: 14] Favorites ----------- Power Ion Engine Engine Ion Engine Propulsion Aluminum Leg Leg Aluminum Leg Wheel Subdweller Monowheel Utility Medium Storage Unit Device Sensor Array Storage Medium Storage Unit Protection Makeshift Light Armor Plating Weapon Battle Rifle Energy Gun Medium Laser Ballistic Gun Battle Rifle Launcher Subdweller Shrapnel Launcher Build | -11 -10 -10 ------- Run | Yrd Mat Sub Slots Evolved . | . . . Power . | . . . Propulsion . | . . . Utility . | . . . Weapon . | . . . Parts Attached 26 | 6 9 11 Power 3 | 1 2 . Engine 3 | 1 2 . Core . | . . . Reactor . | . . . Propulsion 9 | 2 3 4 Treads . | . . . Leg 5 | 2 3 . Wheel 4 | . . 4 Hover . | . . . Flight . | . . . Utility 4 | 1 2 1 Device 1 | . 1 . Storage 2 | 1 1 . Processor . | . . . Hackware . | . . . Protection 1 | . . 1 Artifact . | . . . Weapon 10 | 2 2 6 Energy Gun 4 | 1 1 2 Energy Cannon . | . . . Ballistic Gun 5 | 1 1 3 Ballistic Cannon . | . . . Launcher 1 | . . 1 Special Weapon . | . . . Impact Weapon . | . . . Slashing Weapon . | . . . Piercing Weapon . | . . . Special Melee Weapon . | . . . Unidentified Prototypes . | . . . Parts Lost 3 | . 1 2 Power 1 | . 1 . Propulsion . | . . . Utility 1 | . . 1 Weapon 1 | . . 1 Highest Loss Streak 1 | . 1 1 To Critical Strikes . | . . . Average Slot Usage (%) 98 | . 96 99 Engine 13 | . 13 14 Leg 15 | . 28 3 Wheel 12 | . . 24 Device 8 | . 10 7 Storage 14 | . 14 14 Protection 3 | . . 6 Energy Gun 13 | . 14 13 Ballistic Gun 14 | . 14 14 Peak Build Rating 14 | 6 9 14 Average Rating 10 | 3 7 12 On Entrance 5 | . 6 9 Naked Turns . | . . . Heaviest Build 31 | 11 20 31 Greatest Support 30 | 20 20 30 Greatest Overweight (x) 1 | . . 1 Average Overweight (x) . | . . . Largest Inventory Capacity 10 | 8 10 10 Average Capacity 9 | 6 9 10 Most Carried 10 | 5 10 10 Average Carried 8 | 3 7 9 Final Capacity 10 | 8 10 10 Final Carried 10 | 4 10 10 Class Distribution -------------------- 69% | Mutant 30% | Scavenger-Mutant Dominant Class ---------------- Mutant | -10/Materials Mutant | -10/Subcaves Resources | -11 -10 -10 ----------- Run | Yrd Mat Sub Matter Collected 717 | 228 181 308 Remotely . | . . . Salvage Created 1025 | . 513 512 Parts 54 | . 30 24 Haulers Intercepted 2 | . 2 . Recyclers Shooed 1 | . 1 . Parts Field Recycled . | . . . Retrieved Matter . | . . . Parts Self-Destructed 16 | . . 16 Prevented . | . . . Kills | -11 -10 -10 ------- Run | Yrd Mat Sub Combat Hostiles Destroyed 22 | . 11 11 Guns 20 | . 11 9 AOE 2 | . . 2 Classes Destroyed 6 | . 4 2 Hauler 2 | . 2 . Watcher 2 | . 2 . Swarmer 4 | . 3 1 Grunt 10 | . 8 2 Sentry 1 | . . 1 Subdweller 7 | . . 7 Best Kill Streak 4 | . 4 2 Combat Bots Only 4 | . 4 2 Max Kills in Single Turn 2 | . 2 2 Gunslinging 1 | . 1 . Exploded 2 | . . 2 Melee . | . . . Uniques/NPCs Destroyed . | . . . Combat | -11 -10 -10 -------- Run | Yrd Mat Sub Hostile Shots Fired 90 | . 47 43 Missed 28 | . 15 13 Damage Taken 1061 | . 348 713 Core 272 | . 53 219 Absorbed by Shields . | . . . Core Remaining (%) 100 | 100 . . Volleys Fired 97 | 1 36 60 Largest 2 | 1 2 2 Hottest 88 | 50 75 88 Shots Fired 192 | 1 72 119 Gun 191 | 1 72 118 Cannon . | . . . Launcher 1 | . . 1 Special . | . . . Kinetic 96 | . 36 60 Thermal 96 | 1 36 59 Explosive . | . . . Electromagnetic . | . . . Robot Hit Streak 14 | 1 9 14 Robot Miss Streak 4 | . 4 3 Penetration Max . | . . . Secondary Targets 2 | . 2 . Max Gunslinging Chain 1 | . 1 . Shots Hit Robots 90 | 1 45 44 Core Hits 43 | . 24 19 Critical Kills . | . . . Critical Parts Destroyed . | . . . Critical Strikes 4 | . 2 2 Burn 2 | . 2 . Destroy 2 | . . 2 Melee Attacks . | . . . Impact . | . . . Slashing . | . . . Piercing . | . . . Sneak Attacks . | . . . Combat Hostiles . | . . . Follow-up Attacks . | . . . Damage Inflicted 1515 | 12 577 926 Guns 1430 | 12 577 841 Cannons . | . . . Explosions 85 | . . 85 Melee . | . . . Ramming . | . . . Kinetic 730 | . 278 452 Thermal 785 | 12 299 474 Explosive . | . . . Electromagnetic . | . . . Impact . | . . . Slashing . | . . . Piercing . | . . . Highest Corruption . | . . . Average Corruption . | . . . Corruption Purged . | . . . Corruption Blocked . | . . . Overload Shots . | . . . Overflow Damage . | . . . Projectiles . | . . . Explosions . | . . . Melee . | . . . Knockbacks . | . . . Impact . | . . . Kinetic . | . . . Secondary . | . . . Self-Inflicted Damage . | . . . Shots . | . . . Rammed . | . . . Targets Rammed . | . . . Kicked . | . . . Crushed . | . . . Highest Temperature 183 | . 183 41 Average Temperature 38 | . 63 10 Received Heat Transfer 294 | . 147 147 Siege Activations . | . . . Robots Corrupted . | . . . Combat Hostiles . | . . . Parts Fried . | . . . Impact Corruptions . | . . . Robots Melted . | . . . Combat Hostiles . | . . . Parts Melted 3 | . 1 2 Heat Transferred 1648 | 37 1036 575 Parts Sabotaged . | . . . Parts Stolen . | . . . Parts Stripped . | . . . Power Chain Reactions . | . . . Alert | -11 -10 -10 ------- Run | Yrd Mat Sub Peak Influence 207 | . 207 . Initial . | . . . Average 62 | . 65 . Maximum Alert Level 1 | . 1 . Low Security (%) 97 | 100 97 . Level 1 2 | . 2 . Level 2 . | . . . Level 3 . | . . . Level 4 . | . . . Level 5 . | . . . High Security . | . . . Max Security . | . . . Squads Dispatched 4 | . 4 . Investigation 3 | . 3 . Extermination . | . . . Reinforcement 1 | . 1 . Assault . | . . . Garrison . | . . . Intercept . | . . . Searches Triggered . | . . . Construction Impeded . | . . . Haulers Reinforced . | . . . Active Scanning Responses . | . . . Cargo Convoy Interrupts . | . . . Stealth | -11 -10 -10 --------- Run | Yrd Mat Sub Distress Signals . | . . . Communications Jammed . | . . . Distress Signals . | . . . Times Spotted 32 | . 19 13 Peak Tracking Total 3 | . 3 2 Tactical Retreats 1 | . 1 . Traps | -11 -10 -10 ------- Run | Yrd Mat Sub Traps Triggered 5 | . 3 2 Indirectly . | . . . Trap Hack Attempts . | . . . Triggered . | . . . Disarmed . | . . . Reprogrammed . | . . . Reused . | . . . Traps Extracted . | . . . Installed . | . . . Triggered . | . . . Machines | -11 -10 -10 ---------- Run | Yrd Mat Sub Machines Disabled . | . . . Max in Single Turn . | . . . Machines Repaired . | . . . Machines Dismantled . | . . . Machines Sabotaged . | . . . Overloaded Fab Kills . | . . . Hacking | -11 -10 -10 --------- Run | Yrd Mat Sub Machines Accessed 8 | . 7 1 Terminals 6 | . 6 . Fabricators . | . . . Repair Stations . | . . . Recycling Units 1 | . 1 . Scanalyzers . | . . . Garrison Access . | . . . Total Hacks 21 | . 17 4 Successful 9 | . 5 4 Failed 12 | . 12 . Catastrophic 5 | . 5 . Database Lockouts . | . . . Manual 14 | . 14 . Terminals 16 | . 16 . Fabricators . | . . . Repair Stations . | . . . Recycling Units 1 | . 1 . Scanalyzers . | . . . Garrison Access . | . . . Terminal Hacks 9 | . 5 4 Record 5 | . 1 4 Prototype ID Bank 3 | . 3 . Locate Traps 1 | . 1 . Fabricator Hacks . | . . . Repair Station Hacks . | . . . Recycling Unit Hacks . | . . . Scanalyzer . | . . . Garrison Access Hacks . | . . . Unauthorized Hacks . | . . . Terminals . | . . . Fabricators . | . . . Repair Stations . | . . . Recycling Units . | . . . Scanalyzers . | . . . Garrison Access . | . . . Data Cores Recovered . | . . . Used . | . . . Hacking Detections 7 | . 7 . Full Trace Events . | . . . Feedback Events . | . . . Feedback Blocked . | . . . Robot Schematics Acquired . | . . . Robots Built . | . . . Authchips . | . . . Time . | . . . Total Robot Build Rating . | . . . Part Schematics Acquired . | . . . Parts Built . | . . . Authchips . | . . . Time . | . . . Total Part Build Rating . | . . . Parts Repaired . | . . . Time . | . . . Parts Recycled . | . . . Recycled Matter . | . . . Retrieved Matter . | . . . Retrieved Components . | . . . Parts Scanalyzed . | . . . Part Schematics Acquired . | . . . Parts Damaged . | . . . Bothacking | -11 -10 -10 ------------ Run | Yrd Mat Sub Used RIF Installer . | . . . Robots Hacked . | . . . Non-combat . | . . . Combat . | . . . Robot Hacks Applied . | . . . Relay Couplers Released . | . . . Fabnet Peak Effective % . | . . . Robots Rewired . | . . . Allies Hacked . | . . . Hacks Repelled . | . . . Allies | -11 -10 -10 -------- Run | Yrd Mat Sub Total Allies . | . . . Largest Group . | . . . Highest-Rated Group . | . . . Highest-Rated Ally . | . . . Total Orders . | . . . Ally Attacks . | . . . Total Damage . | . . . Kills . | . . . Allies Corrupted . | . . . Allies Melted . | . . . Intel | -11 -10 -10 ------- Run | Yrd Mat Sub Robot Analysis Total . | . . . Derelict Logs Recovered 2 | . . 2 Drone Launches . | . . . Drone Recoveries . | . . . Exploration | -11 -10 -10 ------------- Run | Yrd Mat Sub Turns Passed 3066 | 54 1468 1544 Spaces Moved 2147 | 35 774 1338 Core 8 | 8 . . Treads . | . . . Legs 937 | 27 774 136 Wheels 1202 | . . 1202 Hover . | . . . Flight . | . . . Fastest Speed 50 | 50 120 95 Average Speed 106 | 104 120 98 Slowest Speed 190 | 120 120 190 Overloaded Moves . | . . . Propulsion Burnouts . | . . . Robots Hopped . | . . . Cave-ins Triggered . | . . . Exploration Rate (%) 59 | 3 98 78 Regions Visited 2 Branch Regions 1 Pre-discovered Areas 2 | . . 2 Known Exits Taken . | . . . Unknown Exits Taken 2 | 1 1 . Scrap Searched 13 | . . 13 Spaces Dug . | . . . Terrain Destroyed 12 | . . 12 Melee . | . . . Projectile . | . . . AOE 12 | . . 12 Terrain Rammed . | . . . Walls Destroyed . | . . . Machines Disabled . | . . . Actions | -11 -10 -10 --------- Run | Yrd Mat Sub Total 2761 | 51 1254 1456 Wait 444 | . 412 32 Move 2145 | 34 773 1338 Hop . | . . . Pick Up 30 | 10 13 7 Fast Attach . | . . . Attach 11 | 6 2 3 Detach . | . . . Swap 15 | . 7 8 Drop 19 | . 11 8 Fire 97 | 1 36 60 Melee . | . . . Ram . | . . . Kick . | . . . Crush . | . . . Escape Stasis . | . . . Rewire . | . . . Trap . | . . . Miscellaneous . | . . . Route ------- -11/Scrapyard -10/Materials (discovered 6 exits: [*Mat x3] / [*Min x2] / *Sub) -10/Subcaves (discovered 1 exit: [*Mat]) History --------- Turn | Location | Event 8 | -11/Scrapyard | Discovered new exit (range 15) 55 | -11/Scrapyard | Entered Materials 300 | -10/Materials | Build established: Mutant 386 | -10/Materials | Discovered new exit (range 7) 655 | -10/Materials | Derelicts attacked the area 777 | -10/Materials | Discovered new exit (range 16) 1037 | -10/Materials | Discovered new exit (range 10) 1249 | -10/Materials | Discovered new exit (range 15) 1300 | -10/Materials | Discovered new exit (range 9) 1372 | -10/Materials | Discovered new exit (range 16) 1523 | -10/Materials | Entered Subcaves 1532 | -10/Subcaves | Build established: Scavenger-Mutant 1538 | -10/Subcaves | Shifting Twisted Machinery released Sub. Beam Cannon 1539 | -10/Subcaves | Shifting Twisted Machinery released Humpback 2037 | -10/Subcaves | Discovered new exit (range 15) 2118 | -10/Subcaves | Core integrity fell below 50% 2134 | -10/Subcaves | Shifting Twisted Machinery released Scrap Shield 2157 | -10/Subcaves | Shifting Twisted Machinery released Sub. Monowheel 2214 | -10/Subcaves | Shifting Twisted Machinery released Sub. Optics 2312 | -10/Subcaves | Disturbed a concealed Subdweller 2399 | -10/Subcaves | Shifting Twisted Machinery released Sub. Shrapnel Launcher 2467 | -10/Subcaves | Build established: Mutant 2708 | -10/Subcaves | Visited Clippyterm 2711 | -10/Subcaves | Learned 40 Factory zone layouts 2806 | -10/Subcaves | A swath of the cavern ceiling suddenly collapsed 2832 | -10/Subcaves | Learned location of Zion (-6) 2832 | -10/Subcaves | Met a Zionite searching for "candidates" 3004 | -10/Subcaves | Core integrity fell below 20% 3067 | -10/Subcaves | Destroyed by HM-863(R) with Subdweller Beam Cannon Last Messages --------------- collapses. 02813_ Acquired 5 matter. 02830_ AW-MSP(z): "She is not going to be happy we haven't found any suitable candidates yet." 02832_ AW-MSP(z): "Hey you! It's really dangerous down here, I feel that you could die at any moment. For your health and safety might I suggest a trip to Zion?" World map updated: -6/Zion. 02832_ Acquired 12 matter. 02840_ Acquired 7 matter. 02945_ Acquired 36 matter. 02946_ Acquired 12 matter. 02984_ Dropped Battle Rifle. 03005_ JH-V2M(R) destroyed. 03005_ KW-V0O(R) destroyed. 03019_ Acquired 41 matter. 03022_ Acquired 9 matter. 03034_ Acquired derelict log, extracted data. World map confirmed: -6/Zion. Map ----- +----------------------------------------------------+ | ??????????????????????????? ""##?????????????????? | | ??????????????????????????# """##????????????????? | | ?????????????????????????# """"" ???????????????? | | ????????????????????????? """"" ???????????????? | | ###?????????????????????? ??????????????????? | | ##??????????????####### #????????????????????? | | #??????????????# #?????????????????????? | | #??????????????# ##?????????????????????? | | #??????????????#### "##??????????????????????? | | #?????????????????## "#???????????????????????? | | #??????????????????# "#???????????????????????? | | #?????????????????## "#???????????????????????? | | #?????????????????# "#???????????????????????? | | #?????????????????# #???????????????????????? | | #????????????????## ##??????????????????????? | | #???????????????## ""#??????????????????????? | | ##??????????????## "#??????????????????????? | | ##???????????????# ##?????????????????????? | | #????????????????# ##????????????????????? | | #?#######????????##"""" #????????????????????? | | #### #######???###### ##????????????????????? | | #?# ## #####???# #????????????????????? | | ### #???## ##???????? ??????????? | | ## #??## #??????? #?????????? | | #### ####### #?????????? | | #### @;# # #?????????? | | ####?# # #??????????? | | #????# ###; % % #??????????? | | # ### ##????## ###; ;# R #???????????? | | ###?#####?????# ## ; ;##? ##???????????? | | ####??######### ####; ;#??? R##????????????? | | # ##?#% ## # % #; &%&*#???? #?????????????? | | #?# ! ]####? #####?????????? | | ### % & ## #?????????? | | # ### ### ## #?????????? | | #### ## ###### < ###??????????? | | ##??## ### #???# ##???????????? | | # #????# #?## #???# #???????????? | | ## #????# #??## #?### #??????????? | | ?## ##??## #??# ### ; ;;# ## #??????????? | | ??# #### #??## ## ## #? #??????????? | | ??# ##### ## #? ? #??????????? | | ??########### !####" "#? ? ##??????????? | | ??????????## !%&### "#? ?#???????????? | | ??????????# & # " ## #????????????? | | ??????????### #" "# ##??#????????????? | | ????????????#"" "" ######?????????????? | | ???????????#### & ## ### ###???????????? | | ????????# #""! &%! ## ##??????????? | | ???????# "" ## #??????????? | +----------------------------------------------------+ Best States ------------- Heat Dissipation 25 Energy Generation 10 Energy Capacity 250 Matter Stores 300 Matter Capacity 300 Sight Range 16 Robot Scan Range 14 Terrain Scan Density 10 Armor Coverage 100 Evasion (%) 55 Item Schematics ----------------- None Robot Schematics ------------------ None Fabricated ------------ Nothing Alien Tech Used ----------------- None Achievements -------------- None Challenges ------------ None Game ------ Seed HoverDisassembledPendant Manual? 0 Play Time 00:34:10 Cumulative 31.5 hours Start 2024.12.16 @ 19:48:58 End 2024.12.16 @ 20:36:16 Sessions 1 Manual Loads 0 Difficulty Rogue Special Mode None Game No. 16 Rogue 16 Adventurer 0 Explorer 0 Win Type - Total 0 Types 0/0/0/0/0/0/0/0/0 Lore% 14 Gallery% 24 Achievement% 21 Wizard Run 0 Options --------- Layout 1 ASCII 0 Keyboard 0 Movement Mouse Keybinds 0 Fullscreen 1 Font 32/Smallcaps Map View 50x35 Zoom Use 0% Tactical HUD 1 Map Filters NONE Filters NONE Steam 1 RUN: 64d09101-7862-4541-b985-d82efea9c54e